bitfinex-derivatives/quotes_BTCF0:USTF0_20251030
["timestamp","ask_amount","ask_price","bid_price","bid_amount"]
[1761806582149,0.37718,110760.0,110750.0,0.39425605]
[1761806582444,0.37718,110760.0,110750.0,0.38500182]
[1761806582842,0.37718,110760.0,110750.0,0.3608]
[1761806582843,0.3771,110760.0,110750.0,0.3608]
[1761806583048,0.3771,110760.0,110750.0,0.38500182]
[1761806583248,0.05962,110760.0,110750.0,0.38500182]
[1761806583445,0.3771,110760.0,110750.0,0.38500182]
[1761806583754,0.05962,110760.0,110750.0,0.38500182]
[1761806583938,0.37706,110760.0,110750.0,0.38500182]
[1761806584344,0.37706,110760.0,110750.0,0.47528972]
[1761806584539,0.05962,110760.0,110750.0,0.67725382]
[1761806584744,0.37698,110760.0,110750.0,0.67725382]
[1761806584946,0.37698,110760.0,110750.0,0.4510879]
[1761806585147,0.37698,110760.0,110750.0,0.67722972]
[1761806585148,0.3771,110760.0,110750.0,0.67722972]
[1761806585457,0.37706,110760.0,110750.0,0.67722972]
[1761806585849,0.33211,110760.0,110750.0,0.67722972]
[1761806586053,0.33207,110760.0,110750.0,0.67722972]
[1761806586644,0.33203,110760.0,110750.0,0.78722972]
[1761806586845,0.01367,110780.0,110770.0,0.0902716]
[1761806587053,0.01367,110780.0,110770.0,0.8118716]
[1761806587250,0.01367,110780.0,110770.0,1.0138357]
[1761806587450,0.33103,110780.0,110770.0,1.0138357]
[1761806587653,0.33103,110780.0,110770.0,0.9235641]
[1761806587851,0.35228,110780.0,110770.0,1.0138357]
[1761806588158,0.03692,110780.0,110770.0,1.0138357]
[1761806588360,0.35428,110780.0,110770.0,1.0138357]
[1761806588659,0.33295,110780.0,110770.0,1.0138357]
[1761806589041,0.31928,110780.0,110770.0,1.0138357]
[1761806589248,0.002,110780.0,110770.0,1.0138357]
[1761806589556,0.0137,110800.0,110780.0,0.0902607]
[1761806589557,0.37326,110800.0,110780.0,0.0902607]
[1761806589758,0.37326,110800.0,110790.0,0.38491349]
[1761806589953,0.37326,110800.0,110790.0,0.02411349]
[1761806589954,0.39326,110800.0,110790.0,0.02411349]
[1761806590261,0.04236,110790.0,110780.0,0.38491349]
[1761806590448,0.04236,110790.0,110780.0,0.02411349]
[1761806590654,0.04236,110790.0,110780.0,0.38491349]
[1761806591450,0.35956,110790.0,110780.0,0.58687759]
[1761806591755,0.35952,110790.0,110780.0,0.38491349]
[1761806592159,0.04236,110790.0,110780.0,0.58687759]
[1761806592358,0.35952,110790.0,110780.0,0.38491349]
[1761806592971,0.04236,110790.0,110780.0,0.38491349]
[1761806593154,0.35952,110790.0,110780.0,0.38691349]
[1761806593550,0.04236,110790.0,110780.0,0.38691349]
[1761806593750,0.35944,110790.0,110780.0,0.38691349]
[1761806594051,0.5614041,110790.0,110780.0,0.3628]
[1761806594359,0.35944,110790.0,110780.0,0.002]
[1761806594549,0.04236,110790.0,110780.0,0.002]
[1761806594966,0.35936,110790.0,110780.0,0.002]
[1761806595552,0.05755,110780.0,110770.0,0.38491349]
[1761806595853,0.05555,110780.0,110770.0,0.38491349]
[1761806596559,0.37247,110780.0,110770.0,0.38491349]
[1761806597060,0.02762,110770.0,110740.0,0.04578384]
[1761806597250,0.5627641,110750.0,110740.0,0.01371]
[1761806597456,0.5627641,110750.0,110740.0,0.03503]
[1761806598050,0.8834041,110750.0,110740.0,0.01371]
[1761806598758,0.8806841,110750.0,110740.0,0.01371]
[1761806598965,0.8834041,110750.0,110740.0,0.01371]
[1761806599163,0.8806841,110750.0,110740.0,0.01371]
[1761806599353,0.5627641,110750.0,110740.0,0.01371]
[1761806599561,0.8843241,110750.0,110740.0,0.01371]
[1761806599863,0.8816041,110750.0,110740.0,0.01371]
[1761806600751,0.5637641,110750.0,110740.0,0.01371]
[1761806601057,0.8816041,110750.0,110740.0,0.01371]
[1761806601460,0.8815241,110750.0,110740.0,0.01371]
[1761806602962,0.8842441,110750.0,110740.0,0.01371]
[1761806603158,0.8815241,110750.0,110740.0,0.01371]
[1761806603860,0.9042441,110750.0,110720.0,0.05767]
[1761806604061,0.5627641,110730.0,110720.0,0.05767]
[1761806604253,0.8804841,110730.0,110720.0,0.05767]
[1761806605368,1.5032041,110730.0,110720.0,0.01471]
[1761806605564,0.9032041,110730.0,110720.0,0.01471]
[1761806606069,0.9032041,110730.0,110720.0,0.01371]
[1761806606270,0.9032041,110730.0,110720.0,0.01471]
[1761806606665,0.9042041,110730.0,110720.0,0.01471]
[1761806607055,0.00999999,110760.0,110750.0,0.04396]
[1761806607365,0.03237945,110780.0,110750.0,0.04396]
[1761806607366,0.02422245,110780.0,110770.0,0.04396]
[1761806607562,0.02422245,110780.0,110770.0,0.6067241]
[1761806607762,0.34402245,110780.0,110770.0,0.40476]
[1761806607971,0.34398245,110780.0,110770.0,0.40476]
[1761806608563,0.02422245,110780.0,110770.0,0.40476]
[1761806608771,0.34398245,110780.0,110770.0,0.40476]
[1761806609267,0.34394245,110780.0,110770.0,0.40476]
[1761806609765,0.54590655,110780.0,110760.0,0.41847]
[1761806609971,0.54862655,110780.0,110760.0,0.41847]
[1761806610473,0.54790655,110780.0,110760.0,0.41847]
[1761806611076,0.61062655,110780.0,110760.0,0.41847]
[1761806611261,0.40594245,110780.0,110760.0,0.41847]
[1761806611573,0.40594245,110780.0,110770.0,0.04396]
[1761806612075,0.40494245,110780.0,110770.0,0.04396]
[1761806612877,0.40594245,110780.0,110770.0,0.04396]
[1761806613565,0.40866245,110780.0,110770.0,0.04396]
[1761806613871,0.40866245,110780.0,110760.0,0.05767]
[1761806614070,0.00272,110770.0,110760.0,0.05767]
[1761806614378,0.90870655,110780.0,110760.0,0.05767]
[1761806614576,0.71674245,110780.0,110770.0,0.02132]
[1761806614965,0.02622245,110780.0,110770.0,0.6960667]
[1761806615173,0.02422245,110790.0,110780.0,0.05665]
[1761806615376,0.34358245,110790.0,110780.0,0.05665]
[1761806615876,0.02422245,110790.0,110780.0,0.7096786]
[1761806616072,0.34358245,110790.0,110780.0,0.7096786]
[1761806616268,0.03237945,110810.0,110800.0,0.05665]
[1761806616578,0.35181945,110810.0,110800.0,0.05665]
[1761806617176,0.03237945,110810.0,110800.0,0.05665]
[1761806617374,0.35177945,110810.0,110800.0,0.05665]
[1761806617977,0.35177945,110810.0,110800.0,0.06573655]
[1761806618777,0.35377945,110810.0,110800.0,0.06573655]
[1761806619280,0.35377945,110810.0,110800.0,0.05665]
[1761806619470,0.35357945,110810.0,110800.0,0.05665]
[1761806619675,0.03437945,110810.0,110800.0,0.5076983]
[1761806619871,0.002,110810.0,110800.0,0.5076983]
[1761806620273,0.002,110810.0,110800.0,1.2724265]
[1761806620475,0.03237945,110820.0,110810.0,0.1330801]
[1761806620670,0.04803028,110830.0,110810.0,0.1330801]
[1761806620671,0.03237945,110830.0,110810.0,0.6747142]
[1761806620877,0.03237945,110830.0,110820.0,0.6194141]
[1761806621177,0.03237945,110830.0,110820.0,0.5076819]
[1761806621178,0.04803028,110830.0,110820.0,0.5076819]
[1761806621487,0.35149631,110830.0,110820.0,0.6194141]
[1761806621871,0.31916,110830.0,110820.0,0.6194141]
[1761806622484,0.36719028,110830.0,110820.0,0.41745]
[1761806622781,0.36819028,110830.0,110820.0,0.41745]
[1761806622990,0.36819028,110830.0,110820.0,0.05665]
[1761806623778,0.04903028,110830.0,110820.0,0.05665]
[1761806623985,0.3608,110860.0,110850.0,0.04284]
[1761806624189,0.3608,110900.0,110870.0,0.0901866]
[1761806624493,0.11316004,110930.0,110910.0,0.090152]
[1761806624675,0.07699581,110940.0,110920.0,0.4940765]
[1761806624882,0.09946581,110940.0,110930.0,0.6147866]
[1761806625080,0.01303,110960.0,110940.0,0.0901327]
[1761806625280,0.01303,110960.0,110950.0,0.2019641]
[1761806625479,0.0355,110960.0,110940.0,0.2019641]
[1761806625784,0.01303,110940.0,110930.0,0.07315582]
[1761806625982,0.01303,110940.0,110930.0,0.8117425]
[1761806626169,0.01303,110940.0,110930.0,0.72432]
[1761806626373,0.05747,110940.0,110930.0,0.72432]
[1761806626573,0.05747,110940.0,110930.0,0.7216]
[1761806626787,0.05747,110940.0,110930.0,0.3608]
[1761806627683,0.04444,110920.0,110910.0,0.5627641]
[1761806627984,0.04444,110920.0,110910.0,0.37466732]
[1761806628581,0.04444,110920.0,110910.0,0.38782891]
[1761806629078,0.04444,110920.0,110900.0,0.3608]
[1761806629079,0.05747,110910.0,110900.0,0.3608]
[1761806629280,0.05747,110910.0,110900.0,0.37465167]
[1761806629281,0.38155,110910.0,110900.0,0.37465167]
[1761806629469,0.5835141,110910.0,110900.0,0.01385167]
[1761806629674,0.5862341,110910.0,110900.0,0.02716854]
[1761806629978,0.04444,110890.0,110880.0,0.36087068]
[1761806630284,0.3684,110890.0,110880.0,0.37472613]
[1761806630494,0.3684,110890.0,110880.0,0.40086747]
[1761806630872,0.3684,110890.0,110880.0,0.04006747]
[1761806631080,0.7292,110890.0,110880.0,0.04006747]
[1761806631578,0.7392,110890.0,110880.0,0.04006747]
[1761806631780,0.9411641,110890.0,110880.0,0.04006747]
[1761806632281,0.9411641,110890.0,110860.0,0.03199151]
[1761806632282,0.04444,110870.0,110860.0,0.03199151]
[1761806632483,0.04444,110860.0,110850.0,0.39279151]
[1761806632681,0.40524,110860.0,110850.0,0.03199151]
[1761806633082,0.6072949,110860.0,110850.0,0.03199151]
[1761806633383,0.6072949,110860.0,110840.0,0.03199151]
[1761806633384,0.05747,110850.0,110840.0,0.03199151]
[1761806633688,1.15005625,110850.0,110840.0,0.03199151]
[1761806633873,1.15005625,110850.0,110830.0,0.04826401]
[1761806633874,0.04444,110840.0,110830.0,0.03199151]
[1761806634074,0.74314506,110840.0,110830.0,0.03199151]
[1761806634275,0.40524,110840.0,110830.0,0.03199151]
[1761806634475,0.399373,110840.0,110830.0,0.03199151]
[1761806634890,0.74727806,110840.0,110830.0,0.03199151]
[1761806635287,0.41217358,110840.0,110830.0,0.03199151]
[1761806635483,0.74735864,110840.0,110830.0,0.03199151]
[1761806635883,0.75007864,110840.0,110830.0,0.03199151]
[1761806636485,0.41217358,110840.0,110830.0,0.03199151]
[1761806636676,0.40945358,110840.0,110830.0,0.03199151]
[1761806636983,0.42248358,110840.0,110830.0,0.03199151]
[1761806637186,0.42348358,110840.0,110830.0,0.03199151]
[1761806637488,0.41448358,110840.0,110830.0,0.03199151]
[1761806637997,0.41448358,110840.0,110830.0,0.40906401]
[1761806637998,0.01711058,110840.0,110830.0,0.40906401]
[1761806638176,0.38523058,110840.0,110830.0,0.04826401]
[1761806638781,0.38419058,110840.0,110830.0,0.40906401]
[1761806638981,0.38419058,110840.0,110830.0,0.41006401]
[1761806639289,0.38419058,110840.0,110830.0,0.69970506]
[1761806639689,0.03858058,110840.0,110830.0,0.78993016]
[1761806640089,0.36258058,110840.0,110830.0,0.78993016]
[1761806640285,0.35958058,110840.0,110830.0,0.78893016]
[1761806640478,0.35958058,110840.0,110830.0,0.78993016]
[1761806640679,0.03558058,110840.0,110830.0,0.85391528]
[1761806640875,0.01311058,110840.0,110830.0,0.96663528]
[1761806641094,0.01303,110860.0,110850.0,0.0902045]
[1761806641303,0.01303,110860.0,110850.0,1.14970956]
[1761806641493,0.01303,110860.0,110850.0,1.20015823]
[1761806641993,0.01303,110860.0,110850.0,1.19743823]
[1761806642191,0.01303,110860.0,110850.0,1.15242956]
[1761806642584,0.01303,110880.0,110870.0,0.0901925]
[1761806642795,0.01303,110880.0,110870.0,1.22921471]
[1761806642998,0.01303,110880.0,110870.0,1.20012785]
[1761806643181,0.05747,110880.0,110870.0,1.10721535]
[1761806643495,0.38135,110880.0,110870.0,0.3926125]
[1761806643990,0.05747,110880.0,110870.0,0.3926125]
[1761806644200,0.05747,110880.0,110870.0,0.43166568]
[1761806644201,0.38131,110880.0,110870.0,0.43166568]
[1761806644584,0.05747,110880.0,110870.0,0.52185818]
[1761806644795,0.38123,110880.0,110870.0,0.80836347]
[1761806645095,0.38123,110880.0,110870.0,0.43166408]
[1761806645989,0.38127,110880.0,110870.0,0.43166408]
[1761806646388,0.0355,110880.0,110870.0,0.43166408]
[1761806646588,0.01303,110880.0,110870.0,0.85976164]
[1761806646892,0.01303,110900.0,110880.0,0.0901833]
[1761806647096,0.38218,110900.0,110890.0,0.3608]
[1761806647288,0.38218,110900.0,110890.0,0.40887094]
[1761806647989,0.0585,110900.0,110890.0,0.49904724]
[1761806648302,0.0615,110900.0,110890.0,0.43167643]
[1761806649005,0.0615,110900.0,110890.0,0.39985318]
[1761806649297,0.4223,110900.0,110890.0,0.03905318]
[1761806650094,0.4193,110900.0,110890.0,0.03905318]
[1761806650295,0.4213,110900.0,110890.0,0.03905318]
[1761806651607,0.01341,110960.0,110930.0,0.0901381]
[1761806651794,0.03665,110960.0,110930.0,0.04202292]
[1761806651995,0.03665,110960.0,110940.0,0.42804016]
[1761806652301,0.01341,110960.0,110950.0,0.3608]
[1761806652502,0.01341,110960.0,110950.0,0.73793096]
[1761806652703,0.01341,110960.0,110950.0,0.4901534]
[1761806653096,0.01341,110960.0,110950.0,0.4000259]
[1761806653288,0.33993,110960.0,110950.0,0.4000259]
[1761806653495,0.3854,110960.0,110950.0,0.4000259]
[1761806653695,0.38812,110960.0,110950.0,0.4000259]
[1761806654095,0.33969,110960.0,110950.0,0.4000259]
[1761806654307,0.34069,110960.0,110950.0,0.4000259]
[1761806654507,0.01441,110960.0,110950.0,0.82805846]
[1761806654801,0.33965,110960.0,110950.0,0.82805846]
[1761806655003,0.3884,110960.0,110950.0,0.4000259]
[1761806655198,0.06216,110960.0,110950.0,0.37438731]
[1761806655393,0.38876,110960.0,110950.0,0.37438731]
[1761806655594,0.98876,110960.0,110950.0,0.37438731]
[1761806655903,1.08746506,110960.0,110950.0,0.01358731]
[1761806656101,1.09018506,110960.0,110950.0,0.03922897]
[1761806656405,0.01341,111000.0,110960.0,0.0901156]
[1761806656406,0.37421,111000.0,110960.0,0.0901156]
[1761806656603,0.37251,110990.0,110980.0,0.3608]
[1761806656802,0.37251,110990.0,110980.0,0.0391987]
[1761806657005,1.07393506,110990.0,110980.0,0.01358731]
[1761806657205,0.75603,110990.0,110980.0,0.01358731]
[1761806658306,0.05873,110970.0,110960.0,0.3758]
[1761806658606,0.05873,110970.0,110960.0,0.03152]
[1761806658607,0.38885,110970.0,110960.0,0.03152]
[1761806658811,0.75965,110970.0,110960.0,0.03152]
[1761806658992,0.05873,110940.0,110930.0,0.41650922]
[1761806659301,0.38605,110940.0,110930.0,0.38468597]
[1761806659703,1.35685,110940.0,110930.0,0.02388597]
[1761806659894,0.04503,110930.0,110920.0,0.05570922]
[1761806660096,0.04503,110930.0,110920.0,0.03182325]
[1761806660707,0.06503,110930.0,110920.0,0.05573853]
[1761806660904,0.42855,110930.0,110920.0,0.02391528]
[1761806661107,0.42583,110930.0,110920.0,0.02391528]
[1761806661608,0.42855,110930.0,110920.0,0.02391528]
[1761806661800,0.76645506,110930.0,110920.0,0.02391528]
[1761806662004,0.76373506,110930.0,110920.0,0.02391528]
[1761806662307,0.76773506,110930.0,110920.0,0.02391528]
[1761806662513,0.37623,110930.0,110920.0,0.02391528]
[1761806662706,0.37611,110930.0,110920.0,0.02391528]
[1761806664217,0.04903,110930.0,110920.0,0.02391528]
[1761806664410,0.37611,110930.0,110920.0,0.02391528]
[1761806665406,0.37611,110930.0,110920.0,0.05573853]
[1761806666014,0.73691,110930.0,110920.0,0.05573853]
[1761806666316,0.73691,110930.0,110920.0,0.03182325]
[1761806666507,0.04903,110930.0,110920.0,0.02394873]
[1761806666708,0.37583,110930.0,110920.0,0.05577198]
[1761806666906,0.37583,110930.0,110920.0,0.03182325]
[1761806668718,0.04903,110930.0,110920.0,0.03182325]
[1761806668904,0.37579,110930.0,110920.0,0.03182325]
[1761806669720,0.73659,110930.0,110920.0,0.03182325]
[1761806669914,1.09449506,110930.0,110920.0,0.03182325]
[1761806670114,1.09449506,110930.0,110920.0,0.0239899]
[1761806670310,1.69721506,110930.0,110920.0,0.0239899]
[1761806670510,0.05873,110920.0,110910.0,0.03182325]
[1761806670818,0.70094,110920.0,110910.0,0.04771029]
[1761806671016,0.74597,110920.0,110910.0,0.05629114]
[1761806671515,0.41953,110920.0,110910.0,0.05629114]
[1761806671709,0.74893,110920.0,110910.0,0.05629114]
[1761806672706,0.39935,110920.0,110910.0,0.06955114]
[1761806672903,0.38793,110920.0,110910.0,0.44607069]
[1761806673107,0.38793,110920.0,110910.0,0.43281069]
[1761806673319,0.06173,110920.0,110910.0,0.43281069]
[1761806673517,0.38793,110920.0,110910.0,0.45933069]
[1761806673907,0.00999999,110970.0,110960.0,0.02316]
[1761806674110,0.04503,110970.0,110960.0,0.40706669]
[1761806674915,0.04503,110970.0,110960.0,0.02310669]
[1761806675122,0.05103,110970.0,110960.0,0.02310669]
[1761806675316,0.41183,110970.0,110960.0,0.02310669]
[1761806675616,0.41183,110970.0,110950.0,0.3608]
[1761806675617,0.75245506,110970.0,110940.0,0.39280376]
[1761806675822,0.04505,110950.0,110940.0,0.38390716]
[1761806676422,0.04505,110950.0,110940.0,0.02310716]
[1761806676923,0.00581623,110970.0,110960.0,0.02316]
[1761806677108,0.00581623,110970.0,110960.0,0.76786716]
[1761806677305,0.05086623,110970.0,110960.0,0.76786716]
[1761806677706,0.04705,110970.0,110960.0,0.40706716]
[1761806678520,0.02245,110970.0,110960.0,0.40706716]
[1761806678823,0.04705,110970.0,110960.0,0.40706716]
[1761806679214,0.04705,110970.0,110960.0,0.38390716]
[1761806679523,0.35245,110970.0,110960.0,0.40706716]
[1761806679912,0.002,110970.0,110960.0,0.40706716]
[1761806680812,0.04705,110970.0,110960.0,0.39548716]
[1761806681017,0.04705,110970.0,110960.0,0.3608]
[1761806682021,0.002,110970.0,110960.0,0.72458506]
[1761806682216,0.002,110970.0,110960.0,0.72186506]
[1761806682417,0.002,110970.0,110960.0,0.38396]
[1761806682611,0.002,110970.0,110960.0,0.72186506]
[1761806683009,0.002,110970.0,110960.0,0.38396]
[1761806683211,0.002,110970.0,110960.0,0.72186506]
[1761806683707,0.002,110970.0,110960.0,0.40643949]
[1761806684022,0.002,110970.0,110960.0,0.41596533]
[1761806684327,0.002,110970.0,110960.0,0.72186506]
[1761806685814,0.02445,110970.0,110960.0,0.38396]
[1761806686008,0.002,110970.0,110960.0,0.38396]
[1761806686214,0.32976,110970.0,110960.0,0.72458506]
[1761806686625,0.32976,110970.0,110960.0,0.72186506]
[1761806686922,0.32976,110970.0,110960.0,0.81470446]
[1761806687122,0.32976,110970.0,110960.0,0.72186506]
[1761806687424,0.32976,110970.0,110960.0,0.38396]
[1761806687613,0.32976,110970.0,110960.0,0.72186506]
[1761806687811,0.002,110970.0,110960.0,0.72458506]
[1761806688125,0.002,110970.0,110960.0,0.72186506]
[1761806688623,0.002,110970.0,110960.0,0.73074528]
[1761806689014,0.002,110970.0,110960.0,0.78516688]
[1761806689215,0.002,110970.0,110960.0,0.84331833]
[1761806689414,0.002,110970.0,110960.0,0.75591893]
[1761806689615,0.002,110970.0,110960.0,0.41801387]
[1761806689816,0.002,110970.0,110960.0,0.75591893]
[1761806690016,0.002,110970.0,110960.0,0.75319893]
[1761806691528,0.04705,110970.0,110960.0,0.40641365]
[1761806693424,0.60893869,110970.0,110960.0,0.02245365]
[1761806693616,0.40785,110970.0,110960.0,0.02245365]
[1761806695421,0.42785,110970.0,110960.0,0.02245365]
[1761806695914,0.62893869,110970.0,110960.0,0.02245365]
[1761806696319,0.63165869,110970.0,110960.0,0.02245365]
[1761806696520,1.23165869,110970.0,110930.0,0.59385664]
[1761806696719,1.23165869,110970.0,110930.0,0.63944572]
[1761806696720,0.03589,110940.0,110930.0,0.63944572]
[1761806697026,0.38509,110940.0,110930.0,0.43835703]
[1761806697223,0.38509,110940.0,110930.0,0.40638908]
[1761806697432,0.38509,110940.0,110930.0,0.39480908]
[1761806697727,0.36249,110940.0,110930.0,0.40638908]
[1761806698236,0.38509,110940.0,110930.0,0.40638908]
[1761806698532,0.02245,110950.0,110940.0,0.02316]
[1761806698714,0.34885,110950.0,110940.0,0.60747777]
[1761806698917,0.41929,110960.0,110950.0,0.02316]
[1761806699221,0.41929,110960.0,110950.0,0.04558908]
[1761806699222,0.74561,110960.0,110950.0,0.04558908]
[1761806699423,0.41929,110960.0,110950.0,0.04558908]
[1761806699722,0.41929,110960.0,110950.0,0.04559907]
[1761806699723,0.38473,110960.0,110950.0,0.04559907]
[1761806699916,0.05849,110960.0,110950.0,0.60748776]
[1761806700125,0.38493,110960.0,110950.0,0.60748776]
[1761806700421,0.05849,110980.0,110970.0,0.02316]
[1761806700717,0.38485,110980.0,110970.0,0.02316]
[1761806700920,0.05849,110980.0,110970.0,0.22424869]
[1761806701119,0.05849,110980.0,110960.0,0.3608]
[1761806701120,0.04505,110970.0,110960.0,0.3608]
[1761806701321,0.04505,110970.0,110960.0,0.38396]
[1761806701728,0.02245,110970.0,110960.0,0.38396]
[1761806701928,0.74565,110980.0,110970.0,0.01158]
[1761806702328,0.74865,110980.0,110970.0,0.01158]
[1761806702727,0.04505,110970.0,110960.0,0.37238]
[1761806702928,0.60693869,110970.0,110960.0,0.02245541]
[1761806703120,0.01344,110960.0,110940.0,0.3608]
[1761806703327,0.32628,110950.0,110940.0,0.40642235]
[1761806704033,0.37133,110950.0,110940.0,0.04562235]
[1761806704420,0.34873,110950.0,110940.0,0.24671104]
[1761806705224,0.32628,110950.0,110940.0,0.60751104]
[1761806705427,0.003,110950.0,110940.0,0.60751104]
[1761806705633,0.003,110950.0,110940.0,0.73233479]
[1761806706023,0.003,110950.0,110940.0,0.63947899]
[1761806706235,0.003,110950.0,110940.0,0.72961479]
[1761806707140,0.003,110950.0,110940.0,0.73233479]
[1761806707440,0.003,110950.0,110940.0,0.5312461]
[1761806707620,0.003,110950.0,110940.0,0.72961479]
[1761806707826,0.003,110950.0,110940.0,0.73233479]
[1761806708223,0.003,110950.0,110940.0,0.64219899]
[1761806708437,0.003,110950.0,110940.0,0.96531899]
[1761806708939,0.003,110950.0,110940.0,0.60751104]
[1761806709628,0.04685,110950.0,110940.0,0.60751104]
[1761806709822,0.02419,110950.0,110940.0,0.60751104]
[1761806711840,0.04685,110950.0,110940.0,0.60751104]
[1761806712041,0.02419,110950.0,110940.0,0.60751104]
[1761806712230,0.003,110950.0,110940.0,0.60751104]
[1761806713128,0.04685,110950.0,110940.0,0.60751104]
[1761806713426,0.37237,110950.0,110940.0,0.40642235]
[1761806713629,0.37237,110950.0,110940.0,0.39484235]
[1761806714039,0.37237,110950.0,110940.0,0.40642235]
[1761806714237,0.003,110950.0,110940.0,0.69764684]
[1761806714541,0.003,110950.0,110940.0,1.65757479]
[1761806714735,0.003,110950.0,110940.0,1.33233479]
[1761806715041,0.003,110950.0,110940.0,1.65493479]
[1761806715235,0.003,110950.0,110940.0,1.65765479]
[1761806715635,0.003,110950.0,110940.0,1.05765479]
[1761806716136,0.003,110950.0,110940.0,1.12817249]
[1761806716337,0.003,110950.0,110940.0,1.12545249]
[1761806716737,0.003,110950.0,110940.0,1.05765479]
[1761806717134,0.003,110950.0,110940.0,1.10560672]
[1761806717741,0.003,110950.0,110940.0,1.05765479]
[1761806718239,0.003,110950.0,110940.0,1.10560672]
[1761806719841,0.003,110950.0,110940.0,1.17892177]
[1761806720444,0.003,110950.0,110940.0,0.82163382]
[1761806720645,0.003,110950.0,110940.0,1.17836206]
[1761806721045,0.003,110950.0,110940.0,1.17564206]
[1761806721546,0.003,110950.0,110940.0,1.17836206]
[1761806722047,0.003,110950.0,110940.0,1.17564206]
[1761806722247,0.003,110950.0,110940.0,1.17836206]
[1761806722448,0.003,110950.0,110940.0,0.85092206]
[1761806722652,0.003,110950.0,110940.0,1.12753013]
[1761806722946,0.003,110950.0,110940.0,1.09552189]
[1761806723143,0.003,110950.0,110940.0,0.77096189]
[1761806723349,0.003,110950.0,110940.0,1.09536189]
[1761806724640,0.003,110950.0,110940.0,1.14336648]
[1761806724836,0.04678,110950.0,110940.0,0.45442694]
[1761806725044,0.04678,110950.0,110940.0,0.41527563]
[1761806725650,0.24786869,110950.0,110940.0,0.05447563]
[1761806725841,0.24786869,110950.0,110930.0,0.03201328]
[1761806725842,0.05687,110940.0,110930.0,0.03201328]
[1761806726038,0.04378,110930.0,110920.0,0.04800459]
[1761806726241,0.94978869,110930.0,110920.0,0.04800459]
[1761806726440,0.3679,110930.0,110920.0,0.45170459]
[1761806726647,0.3679,110930.0,110920.0,0.65279328]
[1761806727244,0.3679,110930.0,110920.0,0.40880459]
[1761806727545,0.3679,110930.0,110920.0,0.04800459]
[1761806727742,0.3709,110930.0,110920.0,0.04800459]
[1761806728341,0.04678,110930.0,110920.0,0.45170459]
[1761806728532,0.37082,110930.0,110920.0,0.45170459]
[1761806728738,0.04678,110930.0,110920.0,0.45170459]
[1761806729046,0.37086,110930.0,110920.0,0.65279328]
[1761806729248,0.37086,110930.0,110920.0,0.45170459]
[1761806729547,0.04678,110930.0,110920.0,0.45170459]
[1761806729850,0.04678,110930.0,110920.0,0.65279328]
[1761806730347,0.04678,110930.0,110920.0,0.45170459]
[1761806730543,0.04678,110930.0,110920.0,0.65279328]
[1761806731346,0.003,110930.0,110920.0,0.74294518]
[1761806731544,0.003,110930.0,110920.0,0.90633928]
[1761806731746,0.05687,110960.0,110950.0,0.0429]
[1761806732050,0.05687,110960.0,110950.0,0.62879896]
[1761806732051,0.04378,110960.0,110950.0,0.62879896]
[1761806732253,0.05687,110960.0,110950.0,0.62879896]
[1761806732947,0.05987,110960.0,110950.0,0.62879896]
[1761806733249,0.62447869,110960.0,110950.0,0.02401027]
[1761806733451,1.25447869,110960.0,110950.0,0.02401027]
[1761806733651,0.04378,110950.0,110940.0,0.02401027]
[1761806733845,0.04378,110950.0,110940.0,0.38481027]
[1761806734234,0.64378,110950.0,110940.0,0.02401027]
[1761806734438,0.64378,110950.0,110940.0,0.3608]
[1761806734638,0.05718,110940.0,110930.0,0.60990923]
[1761806735450,0.05718,110940.0,110930.0,0.04802054]
[1761806735748,0.05718,110940.0,110920.0,0.45317054]
[1761806735749,0.0431,110930.0,110920.0,0.45317054]
[1761806736252,0.0431,110930.0,110920.0,0.40882054]
[1761806736651,0.0431,110930.0,110920.0,0.45317054]
[1761806736847,0.37389,110960.0,110930.0,0.1344937]
[1761806737151,0.05619,110960.0,110950.0,0.06835324]
[1761806737351,0.37979,110960.0,110950.0,0.06835324]
[1761806737743,0.37979,110960.0,110950.0,0.38480324]
[1761806737942,0.39979,110960.0,110950.0,0.02400324]
[1761806738348,0.02115,110940.0,110930.0,0.63024193]
[1761806738543,0.36908611,110960.0,110930.0,0.63024193]
[1761806738857,0.37979,110960.0,110950.0,0.04435]
[1761806739048,0.37979,110960.0,110950.0,0.40515]
[1761806739244,0.37979,110960.0,110950.0,0.04435]
[1761806739443,0.37979,110960.0,110950.0,0.40515]
[1761806739844,0.05619,110960.0,110950.0,0.60623869]
[1761806740051,0.3665,110960.0,110950.0,0.60623869]
[1761806740654,0.34455,110960.0,110950.0,0.60623869]
[1761806741142,0.05434611,110970.0,110960.0,0.04435]
[1761806741343,0.46063763,110980.0,110970.0,0.04435]
[1761806741558,0.41217611,110980.0,110970.0,0.40515]
[1761806742144,0.41217611,110980.0,110970.0,0.04435]
[1761806742340,0.41217611,110980.0,110970.0,0.40515]
[1761806742341,0.46063763,110980.0,110970.0,0.40515]
[1761806742545,0.46063763,110980.0,110970.0,0.04435]
[1761806742953,0.46063763,110980.0,110970.0,0.40515]
[1761806743345,0.44719763,110980.0,110970.0,0.40515]
[1761806743542,0.03239611,110980.0,110970.0,0.60623869]
[1761806743856,0.03239611,110980.0,110970.0,0.69634989]
[1761806744059,0.03239611,110980.0,110970.0,0.60623869]
[1761806744358,0.03239611,110980.0,110970.0,0.69634989]
[1761806744655,0.05354611,110980.0,110970.0,0.60623869]
[1761806744844,0.03239611,110980.0,110970.0,0.60623869]
[1761806745247,0.03239611,110980.0,110970.0,0.61531821]
[1761806745559,0.03239611,110980.0,110970.0,0.70542941]
[1761806745961,0.03239611,110980.0,110970.0,0.61531821]
[1761806746347,0.05354611,110980.0,110970.0,0.61531821]
[1761806746547,0.03239611,110980.0,110970.0,0.61531821]
[1761806747059,0.08085763,110990.0,110980.0,0.04435]
[1761806747262,0.10200763,110990.0,110980.0,0.04435]
[1761806747558,0.09156152,110990.0,110980.0,0.40515]
[1761806747748,0.12395365,110990.0,110980.0,0.04435]
[1761806747947,0.09156152,110990.0,110980.0,0.04435]
[1761806748664,0.09156152,110990.0,110980.0,0.40515]
[1761806748857,0.09156152,110990.0,110980.0,0.04435]
[1761806749157,0.05631,110980.0,110970.0,0.40515]
[1761806749465,0.08870259,110980.0,110970.0,0.40515]